[Event "Titled Tuesday Blitz August 1 Early 2023"]
[White "Tikhonov, Viacheslav"]
[Black "Jain Kashish Manoj"]
[WhiteFideId "44196407"]
[BlackFideId "35081098"]
[WhiteElo "2524"]
[BlackElo "2608"]
[Result "0-1"]
[Round "10"]
[TimeControl "180+1"]
[Date "2023.08.01"]
[WhiteClock "0:00:00"]
[BlackClock "0:00:04"]
[Board "54"]

1. d4 {[%clk 0:03:00]}  Nf6 {[%clk 0:02:57]} 2. c4 {[%clk 0:03:00]}  g6 {[%clk 0:02:57]} 3. Nc3 {[%clk 0:02:59]}  Bg7 {[%clk 0:02:57]} 4. e4 {[%clk 0:02:59]}  d6 {[%clk 0:02:58]} 5. h3 {[%clk 0:02:59]}  O-O {[%clk 0:02:57]} 6. Be3 {[%clk 0:03:00]}  e5 {[%clk 0:02:57]} 7. d5 {[%clk 0:03:00]}  a5 {[%clk 0:02:54]} 8. g4 {[%clk 0:03:00]}  Na6 {[%clk 0:02:54]} 9. Qd2 {[%clk 0:03:00]}  Nd7 {[%clk 0:02:55]} 10. h4 {[%clk 0:02:56]}  Ndc5 {[%clk 0:02:47]} 11. f3 {[%clk 0:02:56]}  Bd7 {[%clk 0:02:44]} 12. Nge2 {[%clk 0:02:53]}  c6 {[%clk 0:02:41]} 13. Ng3 {[%clk 0:02:50]}  cxd5 {[%clk 0:02:41]} 14. cxd5 {[%clk 0:02:51]}  a4 {[%clk 0:02:41]} 15. h5 {[%clk 0:02:48]}  Qa5 {[%clk 0:02:32]} 16. Rc1 {[%clk 0:02:20]}  Rfc8 {[%clk 0:02:17]} 17. hxg6 {[%clk 0:02:10]}  fxg6 {[%clk 0:02:14]} 18. Kf2 {[%clk 0:01:38]}  Rf8 {[%clk 0:01:12]} 19. Kg2 {[%clk 0:01:31]}  Rf7 {[%clk 0:01:12]} 20. Be2 {[%clk 0:01:31]}  Rb8 {[%clk 0:00:56]} 21. Nb5 {[%clk 0:01:29]}  Qb6 {[%clk 0:00:53]} 22. Nc3 {[%clk 0:01:17]}  Qa5 {[%clk 0:00:48]} 23. Nb5 {[%clk 0:01:16]}  Qb6 {[%clk 0:00:49]} 24. Na3 {[%clk 0:01:03]}  Qd8 {[%clk 0:00:49]} 25. Bb5 {[%clk 0:00:59]}  Bxb5 {[%clk 0:00:41]} 26. Nxb5 {[%clk 0:01:00]}  Qf6 {[%clk 0:00:28]} 27. Rhf1 {[%clk 0:00:53]}  Qe7 {[%clk 0:00:27]} 28. Qe2 {[%clk 0:00:33]}  Qd7 {[%clk 0:00:27]} 29. Rc2 {[%clk 0:00:31]}  Rbf8 {[%clk 0:00:24]} 30. Rf2 {[%clk 0:00:29]}  Bf6 {[%clk 0:00:21]} 31. Bh6 {[%clk 0:00:25]}  Bg7 {[%clk 0:00:17]} 32. Be3 {[%clk 0:00:24]}  Bf6 {[%clk 0:00:16]} 33. Bh6 {[%clk 0:00:25]}  Re8 {[%clk 0:00:16]} 34. Rc1 {[%clk 0:00:24]}  Bh4 {[%clk 0:00:15]} 35. Be3 {[%clk 0:00:25]}  Ref8 {[%clk 0:00:13]} 36. Rh1 {[%clk 0:00:24]}  Bxg3 {[%clk 0:00:10]} 37. Kxg3 {[%clk 0:00:25]}  Rf6 {[%clk 0:00:06]} 38. Bg5 {[%clk 0:00:22]}  R6f7 {[%clk 0:00:05]} 39. Bh6 {[%clk 0:00:23]}  Re8 {[%clk 0:00:03]} 40. Be3 {[%clk 0:00:23]}  Ref8 {[%clk 0:00:04]} 41. Rh3 {[%clk 0:00:23]}  Qe7 {[%clk 0:00:03]} 42. Kg2 {[%clk 0:00:22]}  Qd7 {[%clk 0:00:02]} 43. Bc1 {[%clk 0:00:18]}  Nb4 {[%clk 0:00:02]} 44. Bh6 {[%clk 0:00:18]}  Nbd3 {[%clk 0:00:02]} 45. Qe3 {[%clk 0:00:15]}  Nxf2 {[%clk 0:00:02]} 46. Kxf2 {[%clk 0:00:16]}  Qxb5 {[%clk 0:00:02]} 47. Bxf8 {[%clk 0:00:16]}  Kxf8 {[%clk 0:00:03]} 48. Qg5 {[%clk 0:00:15]}  Kg8 {[%clk 0:00:03]} 49. Qd8+ {[%clk 0:00:15]}  Rf8 {[%clk 0:00:04]} 50. Qe7 {[%clk 0:00:16]}  Rf7 {[%clk 0:00:04]} 51. Qd8+ {[%clk 0:00:15]}  Kg7 {[%clk 0:00:04]} 52. Qxd6 {[%clk 0:00:00]}  Nxe4+ {[%clk 0:00:04]} 0-1


[Site "https://www.chess.com"]

[Event "Titled Tuesday Blitz August 1 Early 2023"]
[White "Bochnicka, Vladimir"]
[Black "Lana Rodriguez, David"]
[WhiteFideId "14943450"]
[BlackFideId "2270803"]
[WhiteElo "2478"]
[BlackElo "2604"]
[Result "0-1"]
[Round "10"]
[TimeControl "180+1"]
[Date "2023.08.01"]
[WhiteClock "0:00:00"]
[BlackClock "0:00:44"]
[Board "55"]

1. e4 {[%clk 0:02:57]}  d5 {[%clk 0:03:00]} 2. exd5 {[%clk 0:02:53]}  Qxd5 {[%clk 0:03:01]} 3. Nc3 {[%clk 0:02:51]}  Qa5 {[%clk 0:03:01]} 4. d4 {[%clk 0:02:50]}  Nf6 {[%clk 0:03:01]} 5. Bd2 {[%clk 0:02:43]}  Qb6 {[%clk 0:03:01]} 6. Nf3 {[%clk 0:02:41]}  Bg4 {[%clk 0:03:00]} 7. Bc4 {[%clk 0:02:37]}  e6 {[%clk 0:02:58]} 8. Bb3 {[%clk 0:02:34]}  c6 {[%clk 0:02:56]} 9. h3 {[%clk 0:02:33]}  Bxf3 {[%clk 0:02:55]} 10. Qxf3 {[%clk 0:02:34]}  Qxd4 {[%clk 0:02:55]} 11. O-O-O {[%clk 0:02:33]}  Bc5 {[%clk 0:02:45]} 12. Rhf1 {[%clk 0:01:49]}  O-O {[%clk 0:02:41]} 13. Kb1 {[%clk 0:01:41]}  Qe5 {[%clk 0:02:30]} 14. Rfe1 {[%clk 0:01:37]}  Qf5 {[%clk 0:02:30]} 15. Bf4 {[%clk 0:01:26]}  Nd5 {[%clk 0:02:01]} 16. Nxd5 {[%clk 0:01:18]}  exd5 {[%clk 0:02:02]} 17. g4 {[%clk 0:01:17]}  Qf6 {[%clk 0:01:59]} 18. Qg3 {[%clk 0:01:13]}  Nd7 {[%clk 0:01:55]} 19. c3 {[%clk 0:01:13]}  Rfe8 {[%clk 0:01:52]} 20. Bc2 {[%clk 0:01:13]}  Nf8 {[%clk 0:01:43]} 21. h4 {[%clk 0:01:11]}  Ng6 {[%clk 0:01:25]} 22. Bxg6 {[%clk 0:00:49]}  hxg6 {[%clk 0:01:26]} 23. f3 {[%clk 0:00:34]}  Qd8 {[%clk 0:01:18]} 24. Rh1 {[%clk 0:00:32]}  Be3 {[%clk 0:01:12]} 25. h5 {[%clk 0:00:26]}  Bxf4 {[%clk 0:01:09]} 26. Qxf4 {[%clk 0:00:27]}  Qf6 {[%clk 0:01:08]} 27. Qh2 {[%clk 0:00:14]}  gxh5 {[%clk 0:01:08]} 28. Qxh5 {[%clk 0:00:14]}  Qg6+ {[%clk 0:01:08]} 29. Qxg6 {[%clk 0:00:14]}  fxg6 {[%clk 0:01:08]} 30. Rd2 {[%clk 0:00:11]}  Re3 {[%clk 0:01:02]} 31. Rdh2 {[%clk 0:00:11]}  Rf8 {[%clk 0:00:59]} 32. Rh8+ {[%clk 0:00:08]}  Kf7 {[%clk 0:01:00]} 33. Rxf8+ {[%clk 0:00:08]}  Kxf8 {[%clk 0:01:00]} 34. Rh3 {[%clk 0:00:08]}  Kf7 {[%clk 0:00:59]} 35. Kc2 {[%clk 0:00:07]}  Re2+ {[%clk 0:00:59]} 36. Kb3 {[%clk 0:00:07]}  Rf2 {[%clk 0:00:59]} 37. a4 {[%clk 0:00:07]}  b6 {[%clk 0:01:00]} 38. Ka3 {[%clk 0:00:04]}  c5 {[%clk 0:00:58]} 39. b4 {[%clk 0:00:04]}  c4 {[%clk 0:00:58]} 40. a5 {[%clk 0:00:05]}  Rc2 {[%clk 0:00:54]} 41. axb6 {[%clk 0:00:04]}  axb6 {[%clk 0:00:54]} 42. f4 {[%clk 0:00:04]}  b5 {[%clk 0:00:50]} 43. Rf3 {[%clk 0:00:03]}  Kf6 {[%clk 0:00:50]} 44. f5 {[%clk 0:00:03]}  g5 {[%clk 0:00:50]} 45. Rg3 {[%clk 0:00:02]}  Rd2 {[%clk 0:00:49]} 46. Re3 {[%clk 0:00:02]}  Rd3 {[%clk 0:00:49]} 47. Rxd3 {[%clk 0:00:01]}  cxd3 {[%clk 0:00:50]} 48. Kb2 {[%clk 0:00:02]}  Ke5 {[%clk 0:00:50]} 49. Kc1 {[%clk 0:00:03]}  d4 {[%clk 0:00:46]} 50. Kd2 {[%clk 0:00:02]}  Ke4 {[%clk 0:00:44]} 51. cxd4 {[%clk 0:00:00]}  Kxd4 {[%clk 0:00:44]} 0-1


[Site "https://www.chess.com"]

[Event "Titled Tuesday Blitz August 1 Early 2023"]
[White "Cnejev, Vladimir-Alexandru"]
[Black "Jahnz, Fabian"]
[WhiteFideId "1260898"]
[BlackFideId "4653300"]
[WhiteElo "2579"]
[BlackElo "2384"]
[Result "1-0"]
[Round "10"]
[TimeControl "180+1"]
[Date "2023.08.01"]
[WhiteClock "0:01:16"]
[BlackClock "0:00:47"]
[Board "57"]

1. e4 {[%clk 0:03:00]}  c6 {[%clk 0:02:59]} 2. d4 {[%clk 0:03:00]}  d5 {[%clk 0:03:00]} 3. exd5 {[%clk 0:03:00]}  cxd5 {[%clk 0:03:01]} 4. Bd3 {[%clk 0:03:00]}  Nf6 {[%clk 0:03:01]} 5. c3 {[%clk 0:02:58]}  Qc7 {[%clk 0:03:01]} 6. h3 {[%clk 0:02:57]}  Nc6 {[%clk 0:03:00]} 7. Nf3 {[%clk 0:02:57]}  g6 {[%clk 0:03:00]} 8. O-O {[%clk 0:02:57]}  Bg7 {[%clk 0:03:01]} 9. Re1 {[%clk 0:02:57]}  Bf5 {[%clk 0:03:02]} 10. Bxf5 {[%clk 0:02:45]}  gxf5 {[%clk 0:03:03]} 11. Nh4 {[%clk 0:02:45]}  Qd7 {[%clk 0:02:07]} 12. Qf3 {[%clk 0:02:42]}  O-O-O {[%clk 0:02:05]} 13. Nxf5 {[%clk 0:02:41]}  Rhg8 {[%clk 0:02:00]} 14. Nd2 {[%clk 0:02:01]}  Bh8 {[%clk 0:01:44]} 15. Nh6 {[%clk 0:01:45]}  Rg7 {[%clk 0:01:16]} 16. Qf5 {[%clk 0:01:45]}  Qxf5 {[%clk 0:01:14]} 17. Nxf5 {[%clk 0:01:46]}  Rg5 {[%clk 0:01:14]} 18. Nxe7+ {[%clk 0:01:34]}  Kc7 {[%clk 0:01:11]} 19. Nxc6 {[%clk 0:01:32]}  Kxc6 {[%clk 0:01:12]} 20. Nf3 {[%clk 0:01:28]}  Rf5 {[%clk 0:01:08]} 21. Ne5+ {[%clk 0:01:26]}  Kb6 {[%clk 0:01:08]} 22. g4 {[%clk 0:01:25]}  Rg8 {[%clk 0:00:55]} 23. Kf1 {[%clk 0:01:20]}  Nxg4 {[%clk 0:00:50]} 24. hxg4 {[%clk 0:01:17]}  Bxe5 {[%clk 0:00:47]} 25. gxf5 {[%clk 0:01:16]} 1-0


[Site "https://www.chess.com"]

[Event "Titled Tuesday Blitz August 1 Early 2023"]
[White "Pastar, Slaven"]
[Black "Sychev, Klementy"]
[WhiteFideId "14402718"]
[BlackFideId "4114060"]
[WhiteElo "2575"]
[BlackElo "2783"]
[Result "0-1"]
[Round "10"]
[TimeControl "180+1"]
[Date "2023.08.01"]
[WhiteClock "0:00:04"]
[BlackClock "0:00:22"]
[Board "58"]

1. b3 {[%clk 0:03:00]}  d5 {[%clk 0:02:59]} 2. Bb2 {[%clk 0:03:01]}  Nf6 {[%clk 0:03:00]} 3. Nf3 {[%clk 0:03:02]}  Bf5 {[%clk 0:03:00]} 4. e4 {[%clk 0:03:00]}  dxe4 {[%clk 0:02:48]} 5. Ne5 {[%clk 0:02:48]}  Nbd7 {[%clk 0:02:47]} 6. Nc4 {[%clk 0:02:46]}  e6 {[%clk 0:02:42]} 7. h3 {[%clk 0:02:45]}  Be7 {[%clk 0:02:37]} 8. g4 {[%clk 0:02:45]}  Bg6 {[%clk 0:02:37]} 9. Bg2 {[%clk 0:02:46]}  b5 {[%clk 0:02:29]} 10. Na5 {[%clk 0:02:30]}  Qc8 {[%clk 0:02:23]} 11. Nc6 {[%clk 0:02:20]}  Bd6 {[%clk 0:02:22]} 12. Qe2 {[%clk 0:02:06]}  Qb7 {[%clk 0:02:16]} 13. Nd4 {[%clk 0:02:04]}  a6 {[%clk 0:02:06]} 14. c3 {[%clk 0:01:43]}  c5 {[%clk 0:01:53]} 15. Nc2 {[%clk 0:01:42]}  Ne5 {[%clk 0:01:46]} 16. Ne3 {[%clk 0:01:27]}  Nd3+ {[%clk 0:01:45]} 17. Qxd3 {[%clk 0:01:27]}  O-O {[%clk 0:01:40]} 18. Qe2 {[%clk 0:01:21]}  Nd5 {[%clk 0:01:30]} 19. Nxd5 {[%clk 0:01:20]}  exd5 {[%clk 0:01:30]} 20. Na3 {[%clk 0:01:19]}  f5 {[%clk 0:01:28]} 21. gxf5 {[%clk 0:01:17]}  Rxf5 {[%clk 0:01:27]} 22. Nc2 {[%clk 0:01:17]}  Bh5 {[%clk 0:01:24]} 23. Qe3 {[%clk 0:00:59]}  Raf8 {[%clk 0:01:22]} 24. O-O {[%clk 0:00:40]}  Qc7 {[%clk 0:00:57]} 25. c4 {[%clk 0:00:30]}  Rf3 {[%clk 0:00:54]} 26. Qg5 {[%clk 0:00:24]}  R8f5 {[%clk 0:00:48]} 27. Qxg7+ {[%clk 0:00:19]}  Qxg7 {[%clk 0:00:48]} 28. Bxg7 {[%clk 0:00:20]}  Kxg7 {[%clk 0:00:48]} 29. Ne3 {[%clk 0:00:17]}  Rg5 {[%clk 0:00:47]} 30. cxd5 {[%clk 0:00:17]}  Rxh3 {[%clk 0:00:46]} 31. Rfc1 {[%clk 0:00:16]}  Bf3 {[%clk 0:00:41]} 32. Rc3 {[%clk 0:00:13]}  Rh2 {[%clk 0:00:28]} 33. Kf1 {[%clk 0:00:08]}  Rgxg2 {[%clk 0:00:26]} 34. Nf5+ {[%clk 0:00:05]}  Kf8 {[%clk 0:00:23]} 35. Rxf3 {[%clk 0:00:05]}  exf3 {[%clk 0:00:23]} 36. Ng3 {[%clk 0:00:04]}  Bxg3 {[%clk 0:00:22]} 37. fxg3 {[%clk 0:00:04]}  Rh1# {[%clk 0:00:22]} 0-1


[Site "https://www.chess.com"]

[Event "Titled Tuesday Blitz August 1 Early 2023"]
[White "Xu, Yi"]
[Black "Andreev, Konstantin"]
[WhiteFideId "8605564"]
[BlackFideId "24239305"]
[WhiteElo "2725"]
[BlackElo "2547"]
[Result "1-0"]
[Round "10"]
[TimeControl "180+1"]
[Date "2023.08.01"]
[WhiteClock "0:00:07"]
[BlackClock "0:00:00"]
[Board "61"]

1. d4 {[%clk 0:03:00]}  Nf6 {[%clk 0:02:59]} 2. c4 {[%clk 0:03:01]}  e6 {[%clk 0:02:59]} 3. Nf3 {[%clk 0:03:01]}  d5 {[%clk 0:02:56]} 4. Nc3 {[%clk 0:03:01]}  dxc4 {[%clk 0:02:55]} 5. e4 {[%clk 0:03:00]}  b5 {[%clk 0:02:55]} 6. Nxb5 {[%clk 0:02:56]}  Nxe4 {[%clk 0:02:53]} 7. Bxc4 {[%clk 0:02:57]}  Bb7 {[%clk 0:02:45]} 8. O-O {[%clk 0:02:56]}  Be7 {[%clk 0:02:42]} 9. Bf4 {[%clk 0:02:56]}  Na6 {[%clk 0:02:39]} 10. Rc1 {[%clk 0:02:49]}  Nd6 {[%clk 0:02:32]} 11. Qe2 {[%clk 0:02:02]}  Nxc4 {[%clk 0:02:10]} 12. Qxc4 {[%clk 0:02:01]}  O-O {[%clk 0:01:57]} 13. Ne5 {[%clk 0:01:58]}  Bd6 {[%clk 0:01:44]} 14. Rfd1 {[%clk 0:01:45]}  Bd5 {[%clk 0:01:42]} 15. Qa4 {[%clk 0:01:45]}  Nb8 {[%clk 0:01:33]} 16. Bg3 {[%clk 0:01:32]}  f6 {[%clk 0:01:28]} 17. Nxd6 {[%clk 0:01:22]}  fxe5 {[%clk 0:01:15]} 18. Nb5 {[%clk 0:01:21]}  c6 {[%clk 0:01:14]} 19. Nc3 {[%clk 0:01:15]}  exd4 {[%clk 0:01:12]} 20. Rxd4 {[%clk 0:01:11]}  Nd7 {[%clk 0:01:11]} 21. Nxd5 {[%clk 0:01:03]}  cxd5 {[%clk 0:01:12]} 22. Qc6 {[%clk 0:01:02]}  Qe8 {[%clk 0:00:55]} 23. Re1 {[%clk 0:00:57]}  Rf6 {[%clk 0:00:53]} 24. Rxd5 {[%clk 0:00:53]}  exd5 {[%clk 0:00:51]} 25. Rxe8+ {[%clk 0:00:50]}  Rxe8 {[%clk 0:00:52]} 26. Qxd5+ {[%clk 0:00:49]}  Kh8 {[%clk 0:00:52]} 27. h3 {[%clk 0:00:45]}  Nb6 {[%clk 0:00:50]} 28. Qb5 {[%clk 0:00:39]}  Ref8 {[%clk 0:00:47]} 29. a4 {[%clk 0:00:36]}  Rf5 {[%clk 0:00:38]} 30. Qb4 {[%clk 0:00:36]}  Nd5 {[%clk 0:00:35]} 31. Qd4 {[%clk 0:00:28]}  R8f7 {[%clk 0:00:34]} 32. b4 {[%clk 0:00:23]}  h5 {[%clk 0:00:33]} 33. b5 {[%clk 0:00:22]}  Nf6 {[%clk 0:00:21]} 34. Qc4 {[%clk 0:00:20]}  Nd7 {[%clk 0:00:19]} 35. a5 {[%clk 0:00:19]}  Kh7 {[%clk 0:00:17]} 36. Kh2 {[%clk 0:00:11]}  g5 {[%clk 0:00:16]} 37. f3 {[%clk 0:00:10]}  R5f6 {[%clk 0:00:10]} 38. Qd5 {[%clk 0:00:06]}  Kh6 {[%clk 0:00:09]} 39. h4 {[%clk 0:00:06]}  gxh4 {[%clk 0:00:06]} 40. Bxh4 {[%clk 0:00:06]}  Rf5 {[%clk 0:00:04]} 41. Qd2+ {[%clk 0:00:06]}  Kh7 {[%clk 0:00:04]} 42. Qd3 {[%clk 0:00:07]}  Kg7 {[%clk 0:00:04]} 43. Bg3 {[%clk 0:00:06]}  Kh6 {[%clk 0:00:03]} 44. Bf2 {[%clk 0:00:06]}  R5f6 {[%clk 0:00:03]} 45. Be3+ {[%clk 0:00:06]}  Kg7 {[%clk 0:00:00]} 46. Bd4 {[%clk 0:00:07]} 1-0


[Site "https://www.chess.com"]

[Event "Titled Tuesday Blitz August 1 Early 2023"]
[White "nickVet"]
[Black "Toropov, Pavel"]
[BlackFideId "24129178"]
[WhiteElo "2698"]
[BlackElo "2535"]
[Result "1-0"]
[Round "10"]
[TimeControl "180+1"]
[Date "2023.08.01"]
[WhiteClock "0:01:34"]
[BlackClock "0:01:20"]
[Board "63"]

1. e4 {[%clk 0:03:00]}  e6 {[%clk 0:02:58]} 2. d4 {[%clk 0:03:00]}  d5 {[%clk 0:02:59]} 3. Nd2 {[%clk 0:03:01]}  dxe4 {[%clk 0:02:59]} 4. Nxe4 {[%clk 0:03:02]}  Nd7 {[%clk 0:03:00]} 5. Nf3 {[%clk 0:03:00]}  Ngf6 {[%clk 0:03:00]} 6. Nxf6+ {[%clk 0:03:00]}  Nxf6 {[%clk 0:03:01]} 7. g3 {[%clk 0:03:00]}  b6 {[%clk 0:03:00]} 8. Bg2 {[%clk 0:03:00]}  Bb7 {[%clk 0:03:01]} 9. O-O {[%clk 0:03:01]}  Be7 {[%clk 0:03:00]} 10. a4 {[%clk 0:03:01]}  a6 {[%clk 0:02:53]} 11. c3 {[%clk 0:02:49]}  O-O {[%clk 0:02:52]} 12. Ne5 {[%clk 0:02:47]}  Bxg2 {[%clk 0:02:51]} 13. Kxg2 {[%clk 0:02:48]}  Qd5+ {[%clk 0:02:50]} 14. Qf3 {[%clk 0:02:49]}  Qxf3+ {[%clk 0:02:49]} 15. Kxf3 {[%clk 0:02:48]}  c5 {[%clk 0:02:46]} 16. Be3 {[%clk 0:02:43]}  Rac8 {[%clk 0:02:42]} 17. a5 {[%clk 0:02:38]}  cxd4 {[%clk 0:02:37]} 18. Bxd4 {[%clk 0:02:36]}  b5 {[%clk 0:02:37]} 19. Rfd1 {[%clk 0:02:31]}  Rfd8 {[%clk 0:02:31]} 20. Bb6 {[%clk 0:02:32]}  Rxd1 {[%clk 0:02:28]} 21. Rxd1 {[%clk 0:02:32]}  Kf8 {[%clk 0:02:20]} 22. Nd7+ {[%clk 0:02:27]}  Ke8 {[%clk 0:02:18]} 23. Nxf6+ {[%clk 0:02:14]}  Bxf6 {[%clk 0:02:18]} 24. Ke4 {[%clk 0:02:08]}  Rc4+ {[%clk 0:02:17]} 25. Ke3 {[%clk 0:02:07]}  g5 {[%clk 0:02:02]} 26. Kd3 {[%clk 0:02:00]}  g4 {[%clk 0:01:53]} 27. Rc1 {[%clk 0:01:57]}  Rc6 {[%clk 0:01:34]} 28. b3 {[%clk 0:01:55]}  Rd6+ {[%clk 0:01:33]} 29. Ke2 {[%clk 0:01:43]}  Bg5 {[%clk 0:01:29]} 30. Rc2 {[%clk 0:01:43]}  Kd7 {[%clk 0:01:29]} 31. c4 {[%clk 0:01:43]}  Kc6 {[%clk 0:01:25]} 32. cxb5+ {[%clk 0:01:42]}  Kxb5 {[%clk 0:01:26]} 33. Rc5+ {[%clk 0:01:42]}  Kb4 {[%clk 0:01:25]} 34. Rxg5 {[%clk 0:01:43]}  f5 {[%clk 0:01:23]} 35. Rg7 {[%clk 0:01:38]}  Kxb3 {[%clk 0:01:20]} 36. Ra7 {[%clk 0:01:34]} 1-0


[Site "https://www.chess.com"]

[Event "Titled Tuesday Blitz August 1 Early 2023"]
[White "Santos Flores, Alberto"]
[Black "Schnaider, Ilan"]
[WhiteFideId "3601234"]
[BlackFideId "169013"]
[WhiteElo "2525"]
[BlackElo "2686"]
[Result "1-0"]
[Round "10"]
[TimeControl "180+1"]
[Date "2023.08.01"]
[WhiteClock "0:00:16"]
[BlackClock "0:00:02"]
[Board "66"]

1. e4 {[%clk 0:03:00]}  d5 {[%clk 0:02:57]} 2. exd5 {[%clk 0:03:00]}  Qxd5 {[%clk 0:02:58]} 3. Nf3 {[%clk 0:03:01]}  Bg4 {[%clk 0:02:55]} 4. Be2 {[%clk 0:03:01]}  Nf6 {[%clk 0:02:54]} 5. d4 {[%clk 0:03:01]}  g6 {[%clk 0:02:52]} 6. O-O {[%clk 0:02:58]}  Bg7 {[%clk 0:02:52]} 7. h3 {[%clk 0:02:58]}  Bf5 {[%clk 0:02:50]} 8. c4 {[%clk 0:02:57]}  Qd7 {[%clk 0:02:49]} 9. Ne5 {[%clk 0:02:56]}  Qd8 {[%clk 0:02:47]} 10. g4 {[%clk 0:02:49]}  Bxb1 {[%clk 0:02:46]} 11. Rxb1 {[%clk 0:02:49]}  O-O {[%clk 0:02:47]} 12. Be3 {[%clk 0:02:47]}  Nbd7 {[%clk 0:02:46]} 13. f4 {[%clk 0:02:46]}  c5 {[%clk 0:02:42]} 14. dxc5 {[%clk 0:02:27]}  Qc7 {[%clk 0:02:36]} 15. Nxd7 {[%clk 0:02:25]}  Nxd7 {[%clk 0:02:36]} 16. b4 {[%clk 0:02:24]}  Rad8 {[%clk 0:02:33]} 17. Qc2 {[%clk 0:02:21]}  a5 {[%clk 0:02:32]} 18. a3 {[%clk 0:02:20]}  e5 {[%clk 0:02:28]} 19. f5 {[%clk 0:02:19]}  e4 {[%clk 0:02:29]} 20. Bf4 {[%clk 0:02:19]}  Bd4+ {[%clk 0:02:24]} 21. Kg2 {[%clk 0:02:18]}  Qc6 {[%clk 0:02:23]} 22. Rbd1 {[%clk 0:02:07]}  Be5 {[%clk 0:02:17]} 23. Rxd7 {[%clk 0:01:57]}  Rxd7 {[%clk 0:02:08]} 24. Bxe5 {[%clk 0:01:56]}  e3+ {[%clk 0:02:08]} 25. Bf3 {[%clk 0:01:55]}  Qc8 {[%clk 0:02:02]} 26. Bd6 {[%clk 0:01:51]}  Re8 {[%clk 0:02:01]} 27. Qe2 {[%clk 0:01:43]}  axb4 {[%clk 0:01:56]} 28. axb4 {[%clk 0:01:43]}  Qa8 {[%clk 0:01:56]} 29. Bd5 {[%clk 0:01:41]}  Qa3 {[%clk 0:01:53]} 30. b5 {[%clk 0:01:32]}  Qc3 {[%clk 0:01:49]} 31. Rf3 {[%clk 0:01:27]}  Qd4 {[%clk 0:01:28]} 32. Bf4 {[%clk 0:01:16]}  Qxc5 {[%clk 0:01:24]} 33. Rxe3 {[%clk 0:01:13]}  Rde7 {[%clk 0:01:18]} 34. Rxe7 {[%clk 0:00:52]}  Rxe7 {[%clk 0:01:19]} 35. Qf2 {[%clk 0:00:51]}  Qb4 {[%clk 0:01:16]} 36. Bg5 {[%clk 0:00:43]}  Rd7 {[%clk 0:01:05]} 37. Bf6 {[%clk 0:00:38]}  Qd6 {[%clk 0:00:39]} 38. g5 {[%clk 0:00:37]}  Qa3 {[%clk 0:00:34]} 39. Qe2 {[%clk 0:00:34]}  Qa8 {[%clk 0:00:28]} 40. Qe4 {[%clk 0:00:31]}  Qa2+ {[%clk 0:00:28]} 41. Kg3 {[%clk 0:00:28]}  Qa3+ {[%clk 0:00:28]} 42. Kg4 {[%clk 0:00:26]}  gxf5+ {[%clk 0:00:24]} 43. Qxf5 {[%clk 0:00:25]}  Rc7 {[%clk 0:00:22]} 44. Be5 {[%clk 0:00:24]}  Qe3 {[%clk 0:00:02]} 45. Bxc7 {[%clk 0:00:20]}  Qd4+ {[%clk 0:00:03]} 46. Bf4 {[%clk 0:00:20]}  Qg1+ {[%clk 0:00:03]} 47. Bg3 {[%clk 0:00:20]}  Qd1+ {[%clk 0:00:03]} 48. Bf3 {[%clk 0:00:19]}  Qd4+ {[%clk 0:00:03]} 49. Be4 {[%clk 0:00:18]}  Qd1+ {[%clk 0:00:03]} 50. Qf3 {[%clk 0:00:18]}  Qd7+ {[%clk 0:00:03]} 51. Bf5 {[%clk 0:00:18]}  Qd4+ {[%clk 0:00:03]} 52. Qe4 {[%clk 0:00:18]}  Qd1+ {[%clk 0:00:03]} 53. Kf4 {[%clk 0:00:18]}  Qd2+ {[%clk 0:00:03]} 54. Kf3 {[%clk 0:00:18]}  Qd1+ {[%clk 0:00:03]} 55. Qe2 {[%clk 0:00:18]}  Qh1+ {[%clk 0:00:02]} 56. Kf2 {[%clk 0:00:17]}  Kg7 {[%clk 0:00:01]} 57. Qe5+ {[%clk 0:00:16]}  Kg8 {[%clk 0:00:01]} 58. Qe8+ {[%clk 0:00:16]}  Kg7 {[%clk 0:00:02]} 59. Be5+ {[%clk 0:00:16]}  f6 {[%clk 0:00:02]} 60. Bxf6# {[%clk 0:00:16]} 1-0


[Site "https://www.chess.com"]

[Event "Titled Tuesday Blitz August 1 Early 2023"]
[White "Nagare Kaivalya Sandip"]
[Black "Jaskolka, Tomasz"]
[WhiteFideId "25957929"]
[BlackFideId "1170791"]
[WhiteElo "2670"]
[BlackElo "2529"]
[Result "0-1"]
[Round "10"]
[TimeControl "180+1"]
[Date "2023.08.01"]
[WhiteClock "0:01:22"]
[BlackClock "0:00:13"]
[Board "67"]

1. e4 {[%clk 0:02:59]}  d5 {[%clk 0:03:00]} 2. exd5 {[%clk 0:02:59]}  Nf6 {[%clk 0:03:00]} 3. c4 {[%clk 0:02:58]}  c6 {[%clk 0:02:56]} 4. d4 {[%clk 0:02:56]}  cxd5 {[%clk 0:02:56]} 5. Nc3 {[%clk 0:02:57]}  Nc6 {[%clk 0:02:57]} 6. Nf3 {[%clk 0:02:56]}  e6 {[%clk 0:02:56]} 7. Bd3 {[%clk 0:02:54]}  dxc4 {[%clk 0:02:55]} 8. Bxc4 {[%clk 0:02:54]}  Bb4 {[%clk 0:02:54]} 9. O-O {[%clk 0:02:54]}  O-O {[%clk 0:02:54]} 10. Bg5 {[%clk 0:02:54]}  h6 {[%clk 0:02:54]} 11. Bh4 {[%clk 0:02:54]}  Be7 {[%clk 0:02:54]} 12. Re1 {[%clk 0:02:54]}  Nb4 {[%clk 0:02:43]} 13. Qb3 {[%clk 0:02:53]}  Nc6 {[%clk 0:02:33]} 14. Rad1 {[%clk 0:02:45]}  Na5 {[%clk 0:02:31]} 15. Qa4 {[%clk 0:02:44]}  Nxc4 {[%clk 0:02:31]} 16. Qxc4 {[%clk 0:02:45]}  Nd5 {[%clk 0:01:55]} 17. Bxe7 {[%clk 0:02:43]}  Nxe7 {[%clk 0:01:55]} 18. d5 {[%clk 0:02:41]}  Nxd5 {[%clk 0:01:53]} 19. Nxd5 {[%clk 0:02:42]}  exd5 {[%clk 0:01:53]} 20. Qd4 {[%clk 0:02:34]}  Be6 {[%clk 0:01:44]} 21. Re3 {[%clk 0:02:32]}  Qb6 {[%clk 0:01:08]} 22. Rb3 {[%clk 0:02:28]}  Qxd4 {[%clk 0:01:08]} 23. Nxd4 {[%clk 0:02:29]}  b6 {[%clk 0:01:05]} 24. Rc1 {[%clk 0:02:27]}  Rfc8 {[%clk 0:00:58]} 25. Rbc3 {[%clk 0:02:24]}  Rxc3 {[%clk 0:00:54]} 26. Rxc3 {[%clk 0:02:25]}  Rc8 {[%clk 0:00:50]} 27. Rxc8+ {[%clk 0:02:19]}  Bxc8 {[%clk 0:00:50]} 28. f3 {[%clk 0:02:19]}  Bd7 {[%clk 0:00:50]} 29. Kf2 {[%clk 0:02:19]}  Kf8 {[%clk 0:00:51]} 30. Ke3 {[%clk 0:02:18]}  Ke7 {[%clk 0:00:52]} 31. b4 {[%clk 0:02:18]}  a6 {[%clk 0:00:51]} 32. Kf4 {[%clk 0:02:15]}  Kd6 {[%clk 0:00:49]} 33. g4 {[%clk 0:02:15]}  g5+ {[%clk 0:00:47]} 34. Ke3 {[%clk 0:02:14]}  Ke5 {[%clk 0:00:46]} 35. a3 {[%clk 0:02:14]}  f5 {[%clk 0:00:42]} 36. gxf5 {[%clk 0:02:09]}  Bxf5 {[%clk 0:00:42]} 37. Nc6+ {[%clk 0:02:09]}  Kd6 {[%clk 0:00:40]} 38. Nd4 {[%clk 0:02:08]}  Bd7 {[%clk 0:00:38]} 39. Ne2 {[%clk 0:02:07]}  Ke5 {[%clk 0:00:35]} 40. Nd4 {[%clk 0:02:06]}  Bb5 {[%clk 0:00:29]} 41. Nb3 {[%clk 0:01:59]}  h5 {[%clk 0:00:27]} 42. Nd4 {[%clk 0:01:56]}  Ba4 {[%clk 0:00:23]} 43. h4 {[%clk 0:01:47]}  gxh4 {[%clk 0:00:21]} 44. f4+ {[%clk 0:01:46]}  Kf6 {[%clk 0:00:21]} 45. Kf3 {[%clk 0:01:43]}  Bd1+ {[%clk 0:00:21]} 46. Kf2 {[%clk 0:01:43]}  Bg4 {[%clk 0:00:18]} 47. Kg2 {[%clk 0:01:42]}  h3+ {[%clk 0:00:16]} 48. Kh2 {[%clk 0:01:41]}  h4 {[%clk 0:00:16]} 49. Kg1 {[%clk 0:01:40]}  Bd7 {[%clk 0:00:14]} 50. Kf2 {[%clk 0:01:40]}  Kg6 {[%clk 0:00:15]} 51. Nf3 {[%clk 0:01:33]}  Kf5 {[%clk 0:00:13]} 52. Nxh4+ {[%clk 0:01:29]}  Kxf4 {[%clk 0:00:13]} 53. Ng6+ {[%clk 0:01:30]}  Ke4 {[%clk 0:00:13]} 54. Nf8 {[%clk 0:01:22]}  Bf5 {[%clk 0:00:13]} 0-1


[Site "https://www.chess.com"]